[Event "Titled Tuesday Blitz November 15 Late 2022"]
[White "Adury, Anant"]
[Black "Poliakova, Varvara"]
[WhiteFideId "30964687"]
[BlackFideId "13518313"]
[WhiteElo "2262"]
[BlackElo "2099"]
[Result "0-1"]
[Round "06"]
[TimeControl "180+1"]
[Date "2022.11.16"]
[WhiteClock "0:02:06"]
[BlackClock "0:01:58"]

1. Nf3 {[%clk 0:03:00]}  f5 {[%clk 0:02:49]} 2. g3 {[%clk 0:02:58]}  Nf6 {[%clk 0:02:50]} 3. Bg2 {[%clk 0:02:59]}  d6 {[%clk 0:02:49]} 4. O-O {[%clk 0:03:00]}  e5 {[%clk 0:02:49]} 5. c4 {[%clk 0:03:00]}  g6 {[%clk 0:02:44]} 6. Nc3 {[%clk 0:03:00]}  Bg7 {[%clk 0:02:44]} 7. d3 {[%clk 0:03:00]}  O-O {[%clk 0:02:43]} 8. Bg5 {[%clk 0:03:01]}  h6 {[%clk 0:02:38]} 9. Bxf6 {[%clk 0:03:01]}  Qxf6 {[%clk 0:02:39]} 10. Ne1 {[%clk 0:02:46]}  f4 {[%clk 0:02:36]} 11. Nc2 {[%clk 0:02:44]}  Nc6 {[%clk 0:02:31]} 12. b4 {[%clk 0:02:44]}  Ne7 {[%clk 0:02:25]} 13. Rb1 {[%clk 0:02:35]}  h5 {[%clk 0:02:16]} 14. c5 {[%clk 0:02:35]}  h4 {[%clk 0:02:13]} 15. cxd6 {[%clk 0:02:35]}  cxd6 {[%clk 0:02:11]} 16. b5 {[%clk 0:02:26]}  hxg3 {[%clk 0:02:07]} 17. fxg3 {[%clk 0:02:25]}  Qg5 {[%clk 0:02:08]} 18. Ne4 {[%clk 0:02:24]}  Qh5 {[%clk 0:02:02]} 19. e3 {[%clk 0:02:08]}  Bg4 {[%clk 0:01:59]} 20. Bf3 {[%clk 0:02:07]}  fxg3 {[%clk 0:01:58]} 21. hxg3 {[%clk 0:02:06]} 0-1


[Site "https://www.chess.com"]

[Event "Titled Tuesday Blitz November 15 Late 2022"]
[White "Aggelis, Nikolaos"]
[Black "Bach, Matthias"]
[WhiteFideId "4213220"]
[BlackFideId "4603168"]
[WhiteElo "2189"]
[BlackElo "2165"]
[Result "1-0"]
[Round "06"]
[TimeControl "180+1"]
[Date "2022.11.16"]
[WhiteClock "0:00:32"]
[BlackClock "0:00:08"]

1. Nf3 {[%clk 0:02:54]}  c5 {[%clk 0:02:59]} 2. g3 {[%clk 0:02:54]}  d5 {[%clk 0:02:59]} 3. Bg2 {[%clk 0:02:54]}  e6 {[%clk 0:02:59]} 4. O-O {[%clk 0:02:53]}  Nc6 {[%clk 0:03:00]} 5. d4 {[%clk 0:02:53]}  Nf6 {[%clk 0:02:59]} 6. c4 {[%clk 0:02:53]}  Be7 {[%clk 0:03:00]} 7. cxd5 {[%clk 0:02:53]}  exd5 {[%clk 0:03:00]} 8. dxc5 {[%clk 0:02:53]}  Bxc5 {[%clk 0:03:00]} 9. Nc3 {[%clk 0:02:49]}  d4 {[%clk 0:02:54]} 10. Na4 {[%clk 0:02:23]}  Be7 {[%clk 0:02:53]} 11. Bg5 {[%clk 0:02:22]}  O-O {[%clk 0:02:52]} 12. Rc1 {[%clk 0:02:20]}  h6 {[%clk 0:02:52]} 13. Bxf6 {[%clk 0:02:19]}  Bxf6 {[%clk 0:02:51]} 14. Nc5 {[%clk 0:02:19]}  Qe7 {[%clk 0:02:46]} 15. Qd2 {[%clk 0:02:12]}  Re8 {[%clk 0:02:44]} 16. Rfe1 {[%clk 0:02:11]}  Bf5 {[%clk 0:02:36]} 17. b4 {[%clk 0:02:07]}  Rad8 {[%clk 0:02:33]} 18. b5 {[%clk 0:02:03]}  Ne5 {[%clk 0:02:24]} 19. Nxe5 {[%clk 0:02:02]}  Qxe5 {[%clk 0:02:19]} 20. Nxb7 {[%clk 0:02:03]}  Rb8 {[%clk 0:02:10]} 21. Bc6 {[%clk 0:01:54]}  Bh3 {[%clk 0:01:57]} 22. Nc5 {[%clk 0:01:47]}  Red8 {[%clk 0:01:54]} 23. Nd3 {[%clk 0:01:45]}  Qe7 {[%clk 0:01:44]} 24. Qb4 {[%clk 0:01:42]}  Qxb4 {[%clk 0:01:19]} 25. Nxb4 {[%clk 0:01:41]}  Bg5 {[%clk 0:01:04]} 26. Rcd1 {[%clk 0:01:34]}  Bg4 {[%clk 0:01:02]} 27. a4 {[%clk 0:01:31]}  Bf6 {[%clk 0:00:56]} 28. Nd5 {[%clk 0:01:21]}  Be5 {[%clk 0:00:52]} 29. Nb4 {[%clk 0:01:08]}  Rd6 {[%clk 0:00:44]} 30. Bf3 {[%clk 0:01:07]}  Bxf3 {[%clk 0:00:41]} 31. exf3 {[%clk 0:01:08]}  Bf6 {[%clk 0:00:41]} 32. Nc6 {[%clk 0:01:06]}  Ra8 {[%clk 0:00:38]} 33. f4 {[%clk 0:00:48]}  a6 {[%clk 0:00:36]} 34. Rb1 {[%clk 0:00:42]}  d3 {[%clk 0:00:31]} 35. Red1 {[%clk 0:00:42]}  d2 {[%clk 0:00:29]} 36. Kf1 {[%clk 0:00:42]}  axb5 {[%clk 0:00:28]} 37. axb5 {[%clk 0:00:42]}  Re8 {[%clk 0:00:28]} 38. Na5 {[%clk 0:00:37]}  Bc3 {[%clk 0:00:25]} 39. Nc4 {[%clk 0:00:33]}  Rd5 {[%clk 0:00:09]} 40. Ne3 {[%clk 0:00:33]}  Rd3 {[%clk 0:00:09]} 41. Ke2 {[%clk 0:00:33]}  Red8 {[%clk 0:00:08]} 42. Rb3 {[%clk 0:00:32]} 1-0


[Site "https://www.chess.com"]

[Event "Titled Tuesday Blitz November 15 Late 2022"]
[White "Andreikin, Dmitry"]
[Black "Tari, Aryan"]
[WhiteFideId "4158814"]
[BlackFideId "1510045"]
[WhiteElo "2736"]
[BlackElo "2612"]
[Result "0-1"]
[Round "06"]
[TimeControl "180+1"]
[Date "2022.11.15"]
[WhiteClock "0:00:09"]
[BlackClock "0:00:24"]

1. Nf3 {[%clk 0:03:00]}  d5 {[%clk 0:02:50]} 2. e3 {[%clk 0:02:59]}  Nf6 {[%clk 0:02:50]} 3. d4 {[%clk 0:02:59]}  e6 {[%clk 0:02:47]} 4. Bd3 {[%clk 0:02:59]}  c5 {[%clk 0:02:46]} 5. b3 {[%clk 0:02:59]}  Nc6 {[%clk 0:02:46]} 6. O-O {[%clk 0:02:58]}  Be7 {[%clk 0:02:45]} 7. Bb2 {[%clk 0:02:58]}  O-O {[%clk 0:02:45]} 8. Nbd2 {[%clk 0:02:58]}  a6 {[%clk 0:02:44]} 9. Ne5 {[%clk 0:02:52]}  Qc7 {[%clk 0:02:43]} 10. a3 {[%clk 0:02:46]}  b5 {[%clk 0:02:40]} 11. Nxc6 {[%clk 0:02:43]}  Qxc6 {[%clk 0:02:40]} 12. dxc5 {[%clk 0:02:44]}  Qxc5 {[%clk 0:02:37]} 13. Qf3 {[%clk 0:02:41]}  Bb7 {[%clk 0:02:34]} 14. Qh3 {[%clk 0:02:40]}  h6 {[%clk 0:02:29]} 15. a4 {[%clk 0:02:38]}  b4 {[%clk 0:02:22]} 16. a5 {[%clk 0:02:38]}  Qc7 {[%clk 0:02:19]} 17. Nf3 {[%clk 0:02:31]}  Nd7 {[%clk 0:02:18]} 18. Qg4 {[%clk 0:02:23]}  Nf6 {[%clk 0:01:54]} 19. Qd4 {[%clk 0:02:23]}  Rfb8 {[%clk 0:01:40]} 20. Ne5 {[%clk 0:02:17]}  Bc5 {[%clk 0:01:27]} 21. Qh4 {[%clk 0:02:14]}  Be7 {[%clk 0:01:24]} 22. Qg3 {[%clk 0:02:01]}  Bd6 {[%clk 0:01:19]} 23. f4 {[%clk 0:02:00]}  Qe7 {[%clk 0:00:59]} 24. Rae1 {[%clk 0:01:15]}  Re8 {[%clk 0:00:54]} 25. Bd4 {[%clk 0:00:53]}  Bc5 {[%clk 0:00:50]} 26. Rf3 {[%clk 0:00:49]}  Bxd4 {[%clk 0:00:49]} 27. exd4 {[%clk 0:00:50]}  Ne4 {[%clk 0:00:49]} 28. Qg4 {[%clk 0:00:46]}  f6 {[%clk 0:00:37]} 29. Ng6 {[%clk 0:00:43]}  Qc7 {[%clk 0:00:35]} 30. Bxe4 {[%clk 0:00:30]}  dxe4 {[%clk 0:00:36]} 31. Rh3 {[%clk 0:00:30]}  Qxc2 {[%clk 0:00:24]} 32. Rxh6 {[%clk 0:00:19]}  e3 {[%clk 0:00:25]} 33. Rh3 {[%clk 0:00:09]}  Qf2+ {[%clk 0:00:24]} 0-1


[Site "https://www.chess.com"]

[Event "Titled Tuesday Blitz November 15 Late 2022"]
[White "Ardila, Oscar Humberto"]
[Black "Klenburg, Michael"]
[WhiteFideId "4404742"]
[BlackFideId "14102072"]
[WhiteElo "1959"]
[BlackElo "2405"]
[Result "0-1"]
[Round "06"]
[TimeControl "180+1"]
[Date "2022.11.16"]
[WhiteClock "0:00:08"]
[BlackClock "0:00:10"]

1. d4 {[%clk 0:02:59]}  d6 {[%clk 0:02:59]} 2. Nf3 {[%clk 0:02:58]}  Nf6 {[%clk 0:02:59]} 3. c4 {[%clk 0:02:57]}  Nbd7 {[%clk 0:02:58]} 4. Nc3 {[%clk 0:02:57]}  e5 {[%clk 0:02:58]} 5. dxe5 {[%clk 0:02:57]}  dxe5 {[%clk 0:02:58]} 6. e3 {[%clk 0:02:57]}  Be7 {[%clk 0:02:57]} 7. Be2 {[%clk 0:02:57]}  O-O {[%clk 0:02:57]} 8. O-O {[%clk 0:02:57]}  c6 {[%clk 0:02:57]} 9. Qc2 {[%clk 0:02:57]}  Qc7 {[%clk 0:02:57]} 10. Rd1 {[%clk 0:02:57]}  Re8 {[%clk 0:02:54]} 11. b3 {[%clk 0:02:57]}  Nc5 {[%clk 0:02:54]} 12. e4 {[%clk 0:02:57]}  Bg4 {[%clk 0:02:53]} 13. Be3 {[%clk 0:02:55]}  Ne6 {[%clk 0:02:53]} 14. h3 {[%clk 0:02:54]}  Bxf3 {[%clk 0:02:52]} 15. Bxf3 {[%clk 0:02:55]}  Bc5 {[%clk 0:02:52]} 16. Bxc5 {[%clk 0:02:43]}  Nxc5 {[%clk 0:02:51]} 17. Rd2 {[%clk 0:02:40]}  a5 {[%clk 0:02:46]} 18. Rad1 {[%clk 0:02:38]}  h6 {[%clk 0:02:46]} 19. Ne2 {[%clk 0:02:29]}  Rad8 {[%clk 0:02:41]} 20. Ng3 {[%clk 0:02:26]}  g6 {[%clk 0:02:35]} 21. Qc3 {[%clk 0:02:15]}  Rxd2 {[%clk 0:02:32]} 22. Rxd2 {[%clk 0:02:15]}  Kg7 {[%clk 0:02:30]} 23. a3 {[%clk 0:02:12]}  Ne6 {[%clk 0:02:29]} 24. Ne2 {[%clk 0:02:12]}  Rd8 {[%clk 0:02:20]} 25. Rxd8 {[%clk 0:02:08]}  Nxd8 {[%clk 0:02:20]} 26. b4 {[%clk 0:02:06]}  axb4 {[%clk 0:02:19]} 27. axb4 {[%clk 0:02:06]}  b6 {[%clk 0:02:13]} 28. Qd2 {[%clk 0:01:56]}  Ne6 {[%clk 0:02:12]} 29. g3 {[%clk 0:01:55]}  c5 {[%clk 0:01:57]} 30. Bg2 {[%clk 0:01:44]}  Nd4 {[%clk 0:01:54]} 31. b5 {[%clk 0:01:25]}  Qa7 {[%clk 0:01:51]} 32. Nxd4 {[%clk 0:01:22]}  cxd4 {[%clk 0:01:47]} 33. f4 {[%clk 0:01:22]}  Qa1+ {[%clk 0:01:44]} 34. Kh2 {[%clk 0:01:22]}  Qc3 {[%clk 0:01:41]} 35. Qf2 {[%clk 0:01:09]}  d3 {[%clk 0:01:26]} 36. fxe5 {[%clk 0:01:09]}  Qxe5 {[%clk 0:01:25]} 37. Qe3 {[%clk 0:01:05]}  Qc3 {[%clk 0:01:16]} 38. e5 {[%clk 0:01:06]}  Ng8 {[%clk 0:01:15]} 39. e6 {[%clk 0:01:02]}  fxe6 {[%clk 0:01:03]} 40. c5 {[%clk 0:00:47]}  Qxc5 {[%clk 0:00:43]} 41. Qxd3 {[%clk 0:00:46]}  Nf6 {[%clk 0:00:38]} 42. Qe2 {[%clk 0:00:45]}  Kf7 {[%clk 0:00:36]} 43. h4 {[%clk 0:00:41]}  h5 {[%clk 0:00:36]} 44. Bf3 {[%clk 0:00:40]}  e5 {[%clk 0:00:33]} 45. Qd3 {[%clk 0:00:28]}  Qd4 {[%clk 0:00:31]} 46. Qb3+ {[%clk 0:00:26]}  Kg7 {[%clk 0:00:29]} 47. Qe6 {[%clk 0:00:25]}  e4 {[%clk 0:00:18]} 48. Qe7+ {[%clk 0:00:24]}  Kg8 {[%clk 0:00:18]} 49. Qe6+ {[%clk 0:00:23]}  Kg7 {[%clk 0:00:17]} 50. Qe7+ {[%clk 0:00:23]}  Kg8 {[%clk 0:00:16]} 51. Qe6+ {[%clk 0:00:23]}  Kf8 {[%clk 0:00:16]} 52. Bg2 {[%clk 0:00:21]}  Ng4+ {[%clk 0:00:15]} 53. Kh3 {[%clk 0:00:21]}  Nf6 {[%clk 0:00:11]} 54. Qc8+ {[%clk 0:00:20]}  Ke7 {[%clk 0:00:10]} 55. Kh2 {[%clk 0:00:17]}  e3 {[%clk 0:00:10]} 56. Qc7+ {[%clk 0:00:16]}  Nd7 {[%clk 0:00:09]} 57. Bf3 {[%clk 0:00:12]}  Qd2+ {[%clk 0:00:08]} 58. Kh3 {[%clk 0:00:12]}  e2 {[%clk 0:00:05]} 59. Bxe2 {[%clk 0:00:10]}  Qxe2 {[%clk 0:00:05]} 60. Qf4 {[%clk 0:00:09]}  Qe6+ {[%clk 0:00:04]} 61. Kh2 {[%clk 0:00:09]}  Qf5 {[%clk 0:00:04]} 62. Qb4+ {[%clk 0:00:07]}  Kf7 {[%clk 0:00:03]} 63. Qc4+ {[%clk 0:00:06]}  Qe6 {[%clk 0:00:03]} 64. Qc7 {[%clk 0:00:06]}  Qd5 {[%clk 0:00:01]} 65. Kh3 {[%clk 0:00:05]}  Qe6+ {[%clk 0:00:02]} 66. Kh2 {[%clk 0:00:05]}  Kf6 {[%clk 0:00:02]} 67. Qc3+ {[%clk 0:00:05]}  Ne5 {[%clk 0:00:02]} 68. Qc7 {[%clk 0:00:05]}  Ng4+ {[%clk 0:00:02]} 69. Kh3 {[%clk 0:00:05]}  Nf2+ {[%clk 0:00:02]} 70. Kg2 {[%clk 0:00:06]}  Ng4 {[%clk 0:00:03]} 71. Kh3 {[%clk 0:00:06]}  Ne5+ {[%clk 0:00:04]} 72. Kg2 {[%clk 0:00:06]}  Qa2+ {[%clk 0:00:04]} 73. Kh3 {[%clk 0:00:06]}  Qe6+ {[%clk 0:00:05]} 74. Kg2 {[%clk 0:00:05]}  Ng4 {[%clk 0:00:05]} 75. Qd8+ {[%clk 0:00:05]}  Ke5 {[%clk 0:00:04]} 76. Qd3 {[%clk 0:00:02]}  Qd5+ {[%clk 0:00:05]} 77. Qxd5+ {[%clk 0:00:02]}  Kxd5 {[%clk 0:00:06]} 78. Kf3 {[%clk 0:00:02]}  Kc5 {[%clk 0:00:06]} 79. Kf4 {[%clk 0:00:03]}  Kxb5 {[%clk 0:00:07]} 80. Kg5 {[%clk 0:00:04]}  Kc5 {[%clk 0:00:07]} 81. Kxg6 {[%clk 0:00:04]}  b5 {[%clk 0:00:08]} 82. Kxh5 {[%clk 0:00:05]}  b4 {[%clk 0:00:09]} 83. Kxg4 {[%clk 0:00:06]}  b3 {[%clk 0:00:09]} 84. Kg5 {[%clk 0:00:07]}  b2 {[%clk 0:00:10]} 85. g4 {[%clk 0:00:07]}  b1=Q {[%clk 0:00:10]} 86. Kh5 {[%clk 0:00:08]}  Kd6 {[%clk 0:00:10]} 87. g5 {[%clk 0:00:08]}  Ke7 {[%clk 0:00:10]} 88. Kg4 {[%clk 0:00:08]}  Kf7 {[%clk 0:00:10]} 89. h5 {[%clk 0:00:09]}  Qe4+ {[%clk 0:00:10]} 90. Kg3 {[%clk 0:00:09]}  Ke6 {[%clk 0:00:10]} 91. Kh3 {[%clk 0:00:08]}  Kf5 {[%clk 0:00:10]} 92. g6 {[%clk 0:00:08]}  Qg4+ {[%clk 0:00:10]} 93. Kh2 {[%clk 0:00:08]}  Qxh5+ {[%clk 0:00:10]} 0-1


[Site "https://www.chess.com"]

[Event "Titled Tuesday Blitz November 15 Late 2022"]
[White "Baltaci, Ismail Tarik"]
[Black "chess50years"]
[WhiteFideId "6365213"]
[WhiteElo "2339"]
[BlackElo "2145"]
[Result "1-0"]
[Round "06"]
[TimeControl "180+1"]
[Date "2022.11.16"]
[WhiteClock "0:01:54"]
[BlackClock "0:01:00"]

1. Nf3 {[%clk 0:03:00]}  Nf6 {[%clk 0:02:57]} 2. g3 {[%clk 0:02:57]}  c5 {[%clk 0:02:55]} 3. Bg2 {[%clk 0:02:57]}  Nc6 {[%clk 0:02:55]} 4. O-O {[%clk 0:02:58]}  e6 {[%clk 0:02:55]} 5. d3 {[%clk 0:02:58]}  d5 {[%clk 0:02:54]} 6. Nbd2 {[%clk 0:02:58]}  Be7 {[%clk 0:02:53]} 7. e4 {[%clk 0:02:59]}  O-O {[%clk 0:02:52]} 8. Re1 {[%clk 0:02:58]}  dxe4 {[%clk 0:02:41]} 9. dxe4 {[%clk 0:02:59]}  Bd7 {[%clk 0:02:39]} 10. c3 {[%clk 0:03:00]}  Qc7 {[%clk 0:02:37]} 11. e5 {[%clk 0:03:00]}  Nd5 {[%clk 0:02:34]} 12. Nc4 {[%clk 0:02:54]}  Rfd8 {[%clk 0:02:32]} 13. Qc2 {[%clk 0:02:53]}  Nb6 {[%clk 0:02:29]} 14. Nd6 {[%clk 0:02:39]}  Bxd6 {[%clk 0:02:23]} 15. exd6 {[%clk 0:02:40]}  Qxd6 {[%clk 0:02:23]} 16. Ng5 {[%clk 0:02:41]}  g6 {[%clk 0:02:23]} 17. Ne4 {[%clk 0:02:39]}  Qc7 {[%clk 0:02:06]} 18. Bg5 {[%clk 0:02:35]}  Be8 {[%clk 0:02:06]} 19. Nf6+ {[%clk 0:02:27]}  Kg7 {[%clk 0:02:03]} 20. Qe4 {[%clk 0:02:26]}  Nd7 {[%clk 0:01:50]} 21. Qh4 {[%clk 0:02:23]}  h5 {[%clk 0:01:48]} 22. Rad1 {[%clk 0:02:16]}  Nxf6 {[%clk 0:01:45]} 23. Bxf6+ {[%clk 0:02:16]}  Kh7 {[%clk 0:01:45]} 24. Bxd8 {[%clk 0:02:10]}  Rxd8 {[%clk 0:01:46]} 25. Be4 {[%clk 0:02:02]}  Kg7 {[%clk 0:01:37]} 26. Bxc6 {[%clk 0:02:00]}  Rxd1 {[%clk 0:01:34]} 27. Rxd1 {[%clk 0:01:59]}  Bxc6 {[%clk 0:01:32]} 28. Qf4 {[%clk 0:01:59]}  Qxf4 {[%clk 0:01:28]} 29. gxf4 {[%clk 0:02:00]}  Kf6 {[%clk 0:01:28]} 30. Re1 {[%clk 0:01:55]}  Kf5 {[%clk 0:01:25]} 31. Re5+ {[%clk 0:01:55]}  Kxf4 {[%clk 0:01:24]} 32. Rxc5 {[%clk 0:01:56]}  e5 {[%clk 0:01:23]} 33. b4 {[%clk 0:01:54]}  a6 {[%clk 0:01:17]} 34. c4 {[%clk 0:01:54]}  Bf3 {[%clk 0:01:14]} 35. b5 {[%clk 0:01:52]}  axb5 {[%clk 0:01:13]} 36. cxb5 {[%clk 0:01:53]}  f5 {[%clk 0:01:12]} 37. a4 {[%clk 0:01:53]}  e4 {[%clk 0:01:09]} 38. a5 {[%clk 0:01:52]}  e3 {[%clk 0:01:05]} 39. fxe3+ {[%clk 0:01:52]}  Kxe3 {[%clk 0:01:04]} 40. Rc3+ {[%clk 0:01:53]}  Ke4 {[%clk 0:01:01]} 41. Rxf3 {[%clk 0:01:53]}  Kxf3 {[%clk 0:01:00]} 42. a6 {[%clk 0:01:54]} 1-0


[Site "https://www.chess.com"]

[Event "Titled Tuesday Blitz November 15 Late 2022"]
[White "Bashirli, Nail"]
[Black "Crevatin, Leo"]
[WhiteFideId "13406809"]
[BlackFideId "1726307"]
[WhiteElo "2318"]
[BlackElo "2208"]
[Result "1-0"]
[Round "06"]
[TimeControl "180+1"]
[Date "2022.11.16"]
[WhiteClock "0:00:15"]
[BlackClock "0:00:06"]

1. e4 {[%clk 0:02:58]}  c5 {[%clk 0:02:59]} 2. Nc3 {[%clk 0:02:57]}  Nc6 {[%clk 0:02:59]} 3. g3 {[%clk 0:02:57]}  g6 {[%clk 0:02:59]} 4. Bg2 {[%clk 0:02:57]}  Bg7 {[%clk 0:02:59]} 5. Nge2 {[%clk 0:02:56]}  e6 {[%clk 0:02:59]} 6. O-O {[%clk 0:02:54]}  Nge7 {[%clk 0:02:59]} 7. d3 {[%clk 0:02:54]}  O-O {[%clk 0:02:58]} 8. Be3 {[%clk 0:02:54]}  Nd4 {[%clk 0:02:58]} 9. Qd2 {[%clk 0:02:52]}  Rb8 {[%clk 0:02:52]} 10. h3 {[%clk 0:02:52]}  b5 {[%clk 0:02:51]} 11. f4 {[%clk 0:02:52]}  b4 {[%clk 0:02:47]} 12. Nd1 {[%clk 0:02:52]}  Bb7 {[%clk 0:02:45]} 13. Nf2 {[%clk 0:02:51]}  Nxe2+ {[%clk 0:02:40]} 14. Qxe2 {[%clk 0:02:52]}  Bxb2 {[%clk 0:02:40]} 15. Rab1 {[%clk 0:02:53]}  Bg7 {[%clk 0:02:39]} 16. Bxc5 {[%clk 0:02:52]}  a5 {[%clk 0:02:33]} 17. a3 {[%clk 0:02:51]}  d6 {[%clk 0:02:31]} 18. Ba7 {[%clk 0:02:46]}  Ra8 {[%clk 0:02:23]} 19. Be3 {[%clk 0:02:43]}  Nc6 {[%clk 0:02:23]} 20. axb4 {[%clk 0:02:38]}  axb4 {[%clk 0:02:23]} 21. Ng4 {[%clk 0:02:24]}  h5 {[%clk 0:02:19]} 22. Nh2 {[%clk 0:02:23]}  Ra2 {[%clk 0:02:02]} 23. f5 {[%clk 0:02:13]}  Nd4 {[%clk 0:02:01]} 24. Bxd4 {[%clk 0:02:13]}  Bxd4+ {[%clk 0:02:01]} 25. Kh1 {[%clk 0:02:14]}  Qc7 {[%clk 0:01:44]} 26. fxg6 {[%clk 0:02:05]}  fxg6 {[%clk 0:01:43]} 27. Rxf8+ {[%clk 0:02:02]}  Kxf8 {[%clk 0:01:44]} 28. Rf1+ {[%clk 0:02:02]}  Kg7 {[%clk 0:01:44]} 29. Qf3 {[%clk 0:02:00]}  Qe7 {[%clk 0:01:39]} 30. Qd1 {[%clk 0:01:59]}  Qg5 {[%clk 0:01:27]} 31. Nf3 {[%clk 0:01:58]}  Qc5 {[%clk 0:01:20]} 32. Nxd4 {[%clk 0:01:57]}  Qxd4 {[%clk 0:01:21]} 33. Qf3 {[%clk 0:01:57]}  Ra1 {[%clk 0:01:12]} 34. Qf8+ {[%clk 0:01:51]}  Kh7 {[%clk 0:01:11]} 35. Qe7+ {[%clk 0:01:47]}  Kh6 {[%clk 0:01:11]} 36. Rxa1 {[%clk 0:01:45]}  Qxa1+ {[%clk 0:01:08]} 37. Kh2 {[%clk 0:01:46]}  Qa6 {[%clk 0:00:50]} 38. Qf8+ {[%clk 0:01:24]}  Kh7 {[%clk 0:00:49]} 39. Qe7+ {[%clk 0:01:23]}  Kh6 {[%clk 0:00:49]} 40. Qf8+ {[%clk 0:01:15]}  Kh7 {[%clk 0:00:49]} 41. Qf7+ {[%clk 0:01:15]}  Kh6 {[%clk 0:00:48]} 42. Qg8 {[%clk 0:01:16]}  Qa8 {[%clk 0:00:42]} 43. Qxe6 {[%clk 0:01:16]}  Qd8 {[%clk 0:00:40]} 44. h4 {[%clk 0:01:09]}  Bc8 {[%clk 0:00:39]} 45. Qc4 {[%clk 0:01:09]}  Bg4 {[%clk 0:00:37]} 46. Qxb4 {[%clk 0:01:09]}  Qf6 {[%clk 0:00:37]} 47. Qd2+ {[%clk 0:01:09]}  Kh7 {[%clk 0:00:37]} 48. Qf4 {[%clk 0:01:09]}  Qc3 {[%clk 0:00:36]} 49. Qf7+ {[%clk 0:01:07]}  Kh6 {[%clk 0:00:36]} 50. Qg8 {[%clk 0:01:07]}  Qd4 {[%clk 0:00:31]} 51. Qf8+ {[%clk 0:01:04]}  Kh7 {[%clk 0:00:31]} 52. Qf7+ {[%clk 0:01:03]}  Kh6 {[%clk 0:00:32]} 53. Qf4+ {[%clk 0:01:03]}  Kh7 {[%clk 0:00:32]} 54. Qd2 {[%clk 0:01:04]}  Qb2 {[%clk 0:00:26]} 55. Qf2 {[%clk 0:01:03]}  Kg7 {[%clk 0:00:22]} 56. d4 {[%clk 0:01:00]}  Qc3 {[%clk 0:00:22]} 57. d5 {[%clk 0:00:57]}  Kg8 {[%clk 0:00:17]} 58. Bf1 {[%clk 0:00:54]}  Bd1 {[%clk 0:00:13]} 59. Bd3 {[%clk 0:00:50]}  Kg7 {[%clk 0:00:12]} 60. Qa7+ {[%clk 0:00:50]}  Kh6 {[%clk 0:00:11]} 61. Qe3+ {[%clk 0:00:44]}  Kg7 {[%clk 0:00:12]} 62. e5 {[%clk 0:00:37]}  Bxc2 {[%clk 0:00:06]} 63. exd6 {[%clk 0:00:30]}  Qxd3 {[%clk 0:00:06]} 64. Qxd3 {[%clk 0:00:14]}  Bxd3 {[%clk 0:00:06]} 65. d7 {[%clk 0:00:15]} 1-0


[Site "https://www.chess.com"]

[Event "Titled Tuesday Blitz November 15 Late 2022"]
[White "Bazzano, Sebastian"]
[Black "Reprintsev, Alexander"]
[WhiteFideId "104566"]
[BlackFideId "14100541"]
[WhiteElo "2269"]
[BlackElo "2230"]
[Result "0-1"]
[Round "06"]
[TimeControl "180+1"]
[Date "2022.11.16"]
[WhiteClock "0:00:01"]
[BlackClock "0:00:29"]

1. d4 {[%clk 0:03:00]}  d5 {[%clk 0:02:42]} 2. Bf4 {[%clk 0:02:03]}  Nf6 {[%clk 0:02:35]} 3. e3 {[%clk 0:02:03]}  c5 {[%clk 0:02:26]} 4. c3 {[%clk 0:02:01]}  Qb6 {[%clk 0:02:25]} 5. Qb3 {[%clk 0:02:00]}  c4 {[%clk 0:02:25]} 6. Qc2 {[%clk 0:01:58]}  g6 {[%clk 0:02:26]} 7. Nd2 {[%clk 0:01:57]}  Bf5 {[%clk 0:02:20]} 8. Qc1 {[%clk 0:01:53]}  Bg7 {[%clk 0:02:13]} 9. Ngf3 {[%clk 0:01:53]}  O-O {[%clk 0:02:13]} 10. Be2 {[%clk 0:01:46]}  Re8 {[%clk 0:01:37]} 11. h3 {[%clk 0:01:45]}  Nc6 {[%clk 0:01:31]} 12. O-O {[%clk 0:01:41]}  Ne4 {[%clk 0:01:26]} 13. Nxe4 {[%clk 0:01:23]}  Bxe4 {[%clk 0:01:27]} 14. Nd2 {[%clk 0:01:24]}  e5 {[%clk 0:01:10]} 15. dxe5 {[%clk 0:01:19]}  Bxe5 {[%clk 0:01:07]} 16. Nxe4 {[%clk 0:01:14]}  Bxf4 {[%clk 0:01:03]} 17. Nf6+ {[%clk 0:01:13]}  Kh8 {[%clk 0:00:59]} 18. Nxe8 {[%clk 0:01:09]}  Be5 {[%clk 0:00:55]} 19. Bf3 {[%clk 0:00:53]}  Rxe8 {[%clk 0:00:51]} 20. Bxd5 {[%clk 0:00:52]}  Kg7 {[%clk 0:00:48]} 21. Bxc4 {[%clk 0:00:50]}  Bb8 {[%clk 0:00:43]} 22. Qc2 {[%clk 0:00:20]}  Qc7 {[%clk 0:00:42]} 23. g3 {[%clk 0:00:19]}  Ne5 {[%clk 0:00:40]} 24. Be2 {[%clk 0:00:19]}  h5 {[%clk 0:00:40]} 25. h4 {[%clk 0:00:18]}  Qc6 {[%clk 0:00:40]} 26. Rfd1 {[%clk 0:00:13]}  Re6 {[%clk 0:00:39]} 27. Qb3 {[%clk 0:00:11]}  Rf6 {[%clk 0:00:38]} 28. Qc4 {[%clk 0:00:10]}  Nf3+ {[%clk 0:00:37]} 29. Bxf3 {[%clk 0:00:10]}  Qxc4 {[%clk 0:00:37]} 30. Rd4 {[%clk 0:00:03]}  Qe6 {[%clk 0:00:29]} 31. Bxb7 {[%clk 0:00:02]}  Bxg3 {[%clk 0:00:29]} 32. fxg3 {[%clk 0:00:01]}  Qxe3+ {[%clk 0:00:29]} 0-1


[Site "https://www.chess.com"]

[Event "Titled Tuesday Blitz November 15 Late 2022"]
[White "Bernat, David"]
[Black "Harish, Neeraj"]
[WhiteFideId "2099225"]
[BlackFideId "30958130"]
[WhiteElo "2337"]
[BlackElo "1815"]
[Result "1-0"]
[Round "06"]
[TimeControl "180+1"]
[Date "2022.11.16"]
[WhiteClock "0:00:16"]
[BlackClock "0:01:01"]

1. c4 {[%clk 0:03:00]}  Nf6 {[%clk 0:02:56]} 2. Nc3 {[%clk 0:03:00]}  g6 {[%clk 0:02:55]} 3. e4 {[%clk 0:03:00]}  e5 {[%clk 0:02:55]} 4. g3 {[%clk 0:03:00]}  Bg7 {[%clk 0:02:53]} 5. Bg2 {[%clk 0:03:00]}  O-O {[%clk 0:02:53]} 6. Nge2 {[%clk 0:03:01]}  c5 {[%clk 0:02:51]} 7. O-O {[%clk 0:03:01]}  d6 {[%clk 0:02:51]} 8. d3 {[%clk 0:03:02]}  Nc6 {[%clk 0:02:51]} 9. a3 {[%clk 0:03:03]}  Be6 {[%clk 0:02:50]} 10. Nd5 {[%clk 0:03:02]}  Bxd5 {[%clk 0:02:47]} 11. cxd5 {[%clk 0:03:02]}  Nd4 {[%clk 0:02:48]} 12. Nxd4 {[%clk 0:03:01]}  cxd4 {[%clk 0:02:48]} 13. f4 {[%clk 0:03:01]}  Rc8 {[%clk 0:02:43]} 14. f5 {[%clk 0:02:53]}  Qc7 {[%clk 0:02:38]} 15. g4 {[%clk 0:02:43]}  Nd7 {[%clk 0:02:25]} 16. g5 {[%clk 0:02:39]}  f6 {[%clk 0:02:25]} 17. h4 {[%clk 0:02:39]}  Qd8 {[%clk 0:02:21]} 18. h5 {[%clk 0:02:32]}  fxg5 {[%clk 0:02:16]} 19. hxg6 {[%clk 0:02:24]}  hxg6 {[%clk 0:02:05]} 20. Qg4 {[%clk 0:02:07]}  gxf5 {[%clk 0:01:59]} 21. exf5 {[%clk 0:02:06]}  Bf6 {[%clk 0:01:48]} 22. Rf3 {[%clk 0:01:37]}  Kg7 {[%clk 0:01:44]} 23. Rg3 {[%clk 0:01:29]}  Rh8 {[%clk 0:01:43]} 24. Bxg5 {[%clk 0:01:10]}  Bxg5 {[%clk 0:01:42]} 25. f6+ {[%clk 0:01:10]}  Qxf6 {[%clk 0:01:40]} 26. Qxd7+ {[%clk 0:01:10]}  Kh6 {[%clk 0:01:13]} 27. Rf1 {[%clk 0:00:55]}  Qe7 {[%clk 0:01:13]} 28. Qh3+ {[%clk 0:00:17]}  Kg7 {[%clk 0:01:11]} 29. Qf5 {[%clk 0:00:17]}  Rh5 {[%clk 0:01:06]} 30. Be4 {[%clk 0:00:17]}  Qf6 {[%clk 0:01:01]} 31. Qxf6+ {[%clk 0:00:16]} 1-0


[Site "https://www.chess.com"]